bitfinex/quotes_ETHUSD_20251124
["timestamp","ask_amount","ask_price","bid_price","bid_amount"]
[1764020290099,3.56747305,2968.9,2968.1,0.0698]
[1764020290304,0.619504,2968.8,2968.1,3.17849763]
[1764020290615,0.619504,2968.8,2967.6,6.73942387]
[1764020291325,0.405504,2968.6,2967.6,6.73942387]
[1764020291525,3.36791054,2969.2,2967.6,10.10915024]
[1764020291711,1.25025418,2969.1,2967.6,10.10915024]
[1764020291922,1.13109811,2968.9,2967.6,10.10915024]
[1764020293729,1.81429811,2968.9,2967.6,6.73942387]
[1764020293941,0.405504,2968.5,2967.7,0.72559411]
[1764020295460,0.4682,2967.8,2967.5,0.001]
[1764020295625,0.214,2967.7,2967.5,0.001]
[1764020295944,0.31066142,2968.2,2967.5,0.001]
[1764020296146,0.214,2967.9,2967.5,0.001]
[1764020296331,0.214,2968.1,2967.5,0.001]
[1764020297847,0.13504366,2968.7,2967.5,0.001]
[1764020298013,0.214,2968.9,2967.6,0.72559411]
[1764020298445,0.72374735,2968.9,2967.6,0.72559411]
[1764020298644,0.405504,2968.8,2967.6,0.72559411]
[1764020299114,0.889504,2968.8,2967.6,0.72559411]
[1764020300143,0.405504,2968.6,2967.7,6.73922566]
[1764020301015,0.214,2968.7,2967.7,10.10883849]
[1764020301944,0.405504,2968.6,2967.7,6.73922566]
[1764020302146,0.889204,2968.6,2967.7,6.73922566]
[1764020302345,4.25783482,2968.6,2967.7,6.73922566]
[1764020303245,0.405504,2968.6,2967.7,6.73922566]
[1764020303547,0.405504,2968.7,2967.8,0.03369499]
[1764020303728,0.214,2968.6,2967.7,10.10883849]
[1764020304318,0.31081906,2968.7,2967.7,10.10883849]
[1764020304537,3.89330137,2968.7,2967.7,10.10883849]
[1764020304858,3.58248231,2968.7,2967.7,10.10883849]
[1764020305741,0.214,2968.7,2967.7,10.10883849]
[1764020305936,0.5252731,2968.7,2967.7,10.10883849]
[1764020306151,0.3112731,2968.7,2967.7,10.10883849]
[1764020306354,0.214,2968.6,2967.7,10.10883849]
[1764020307052,0.3112731,2968.7,2967.8,0.24769499]
[1764020307250,0.5252731,2968.8,2967.8,0.214]
[1764020307458,0.3112731,2968.7,2967.8,0.93959411]
[1764020308435,0.3112731,2968.6,2967.9,10.10815728]
[1764020308654,0.3112731,2968.5,2967.9,10.10815728]
[1764020308838,0.31220811,2968.7,2967.9,10.10815728]
[1764020309039,0.31220811,2968.6,2967.9,10.10815728]
[1764020309266,0.31220811,2968.5,2967.9,6.73877152]
[1764020309419,0.31220811,2968.4,2967.9,6.73877152]
[1764020309628,0.31220811,2968.3,2967.9,6.73877152]
[1764020309868,0.31220811,2968.2,2967.9,3.36938576]
[1764020310158,0.4677,2968.0,2967.5,0.001]
[1764020310327,0.31220811,2967.9,2967.7,0.72559411]
[1764020310655,0.4677,2968.0,2967.5,4.09632663]
[1764020310844,0.31264064,2967.9,2967.5,0.001]
[1764020311049,0.31264064,2967.8,2967.5,0.001]
[1764020311248,0.31264064,2967.7,2967.5,0.001]
[1764020311432,0.31264064,2967.6,2967.5,0.001]
[1764020313827,0.002,2968.8,2967.5,0.72659411]
[1764020314129,0.31246563,2968.7,2967.5,0.72659411]
[1764020314429,0.31246563,2968.6,2967.5,0.72659411]
[1764020314631,0.31246563,2968.5,2967.7,0.72559411]
[1764020314871,0.31246563,2968.4,2967.7,0.93959411]
[1764020315039,0.4677,2967.1,2965.7,7.26095172]
[1764020315227,0.4677,2966.8,2965.8,0.03371771]
[1764020315429,0.31221259,2966.7,2965.7,10.11565566]
[1764020315729,0.405504,2967.2,2965.8,0.72559411]
[1764020316060,0.89499764,2967.5,2965.8,7.96029695]
[1764020316061,0.31228241,2967.1,2965.8,7.96029695]
[1764020316357,1.01312503,2967.7,2966.5,0.72559411]
[1764020316574,0.3121036,2967.6,2966.8,0.72559411]
[1764020316770,0.3121036,2967.5,2966.8,0.72559411]
[1764020316931,0.3121036,2967.4,2966.8,0.72559411]
[1764020317244,0.215,2967.9,2966.8,0.72559411]
[1764020317445,0.31203588,2967.8,2966.8,0.72559411]
[1764020317655,0.31203588,2967.7,2966.8,0.72559411]
[1764020317832,0.31203588,2967.6,2966.8,0.72559411]
[1764020318048,0.31203588,2967.5,2966.8,0.72559411]
[1764020318278,0.215,2967.9,2966.8,0.72559411]
[1764020318444,0.31199556,2967.8,2966.8,0.72559411]
[1764020318644,0.31199556,2967.7,2966.8,0.72559411]
[1764020318845,0.31199556,2967.6,2967.0,0.72559411]
[1764020319046,0.31199556,2967.5,2967.0,0.72559411]
[1764020319248,0.215,2967.9,2967.0,0.72559411]
[1764020319446,0.31201659,2967.8,2967.0,0.72559411]
[1764020319739,0.31201659,2967.7,2967.0,0.72559411]
[1764020319964,0.31201659,2967.6,2967.0,0.72559411]
[1764020320167,0.31201659,2967.5,2967.0,0.72559411]
[1764020320384,0.31207602,2967.4,2967.0,0.72559411]
[1764020320545,0.31207602,2967.3,2967.0,0.72559411]
[1764020320878,3.36972637,2967.6,2967.0,0.72559411]
[1764020321084,0.31208665,2967.5,2966.9,3.37052141]
[1764020321241,0.31208665,2967.4,2966.9,3.37052141]
[1764020321437,0.31208665,2967.3,2966.9,3.37052141]
[1764020321777,3.85342637,2967.6,2966.9,3.37052141]
[1764020322069,0.31205514,2967.5,2966.9,3.37052141]
[1764020322270,0.31205514,2967.4,2966.9,6.74104282]
[1764020322565,4.65695542,2967.6,2966.9,6.74104282]
[1764020322770,0.31203364,2967.5,2966.9,6.74104282]
[1764020322932,0.31203364,2967.4,2966.8,0.72559411]
[1764020323136,4.65695542,2967.6,2966.8,0.72559411]
[1764020323371,0.31206275,2967.5,2966.8,0.72559411]
[1764020323534,0.31206275,2967.4,2966.8,0.72559411]
[1764020323737,4.17325542,2967.6,2966.8,0.72559411]
[1764020323950,0.79576328,2967.5,2966.8,0.72559411]
[1764020324149,0.31206328,2967.4,2966.8,0.72559411]
[1764020324433,0.31206328,2967.3,2966.8,0.72559411]
[1764020324647,0.4837,2967.5,2966.8,0.72559411]
[1764020324947,1.3675899,2967.5,2966.8,0.72559411]
[1764020325149,0.4837,2967.4,2966.9,3.37052141]
[1764020325758,0.4837,2967.4,2966.8,3.37058961]
[1764020325970,0.31192525,2967.3,2966.8,3.37058961]
[1764020326140,0.79562525,2967.2,2966.8,3.37058961]
[1764020326338,0.40681074,2967.7,2966.8,6.74122463]
[1764020326551,0.52674227,2967.6,2966.9,0.72559411]
[1764020326871,0.31174227,2967.5,2966.9,0.72559411]
[1764020327072,0.31174227,2967.4,2966.9,0.72559411]
[1764020327372,0.31174227,2967.5,2967.0,6.74081562]
[1764020329174,0.31174227,2967.5,2966.9,6.74104282]
[1764020329598,0.215,2967.6,2966.9,6.74104282]
[1764020329752,0.52674227,2967.6,2966.9,6.74104282]
[1764020329952,0.31174227,2967.5,2966.9,6.74104282]
[1764020330696,0.215,2967.6,2966.9,6.74104282]
[1764020331001,1.02214227,2967.6,2966.9,6.74104282]
[1764020331194,0.31174227,2967.5,2966.9,6.74104282]
[1764020331401,0.215,2967.6,2966.9,6.74204282]
[1764020334188,0.52661845,2967.6,2966.9,6.74204282]
[1764020337025,0.31161845,2967.6,2966.9,10.11256423]
[1764020337227,0.4954,2967.5,2966.9,6.74204282]
[1764020339031,0.3118881,2967.4,2966.9,0.001]
[1764020339192,1.24650651,2967.3,2966.9,0.001]
[1764020339525,0.3118881,2967.2,2966.9,0.001]
[1764020339686,0.3118881,2967.1,2966.9,0.001]
[1764020339887,0.4954,2967.2,2966.9,0.001]
[1764020340086,0.31195153,2967.1,2966.9,0.001]
[1764020340298,0.4954,2967.2,2966.9,0.001]
[1764020340502,0.74236907,2967.1,2966.9,0.001]
[1764020340821,0.43047046,2967.1,2966.9,0.001]
[1764020340979,0.900904,2967.7,2966.9,0.001]
[1764020341191,0.215,2967.4,2966.9,0.001]
[1764020341382,0.31180391,2967.3,2966.9,0.001]
[1764020341599,0.31180391,2967.2,2966.9,0.001]
[1764020341794,0.4954,2967.3,2966.9,0.001]
[1764020342016,0.31166528,2967.2,2966.9,0.001]
[1764020342220,0.215,2967.5,2966.9,0.001]
[1764020342399,0.31166048,2967.4,2966.9,0.001]
[1764020342594,0.215,2967.5,2966.9,0.001]
[1764020342595,0.31166048,2967.3,2966.9,0.001]
[1764020342786,0.31166048,2967.2,2966.9,0.001]
[1764020342987,0.215,2967.5,2966.9,0.001]
[1764020343214,0.31164455,2967.4,2966.9,0.001]
[1764020343519,0.31164455,2967.3,2966.9,0.001]
[1764020343720,0.66355779,2967.5,2966.9,0.001]
[1764020343721,0.31164455,2967.2,2966.9,0.001]
[1764020343916,1.15895779,2967.5,2966.9,0.001]
[1764020344124,0.31163731,2967.4,2966.9,0.001]
[1764020344332,0.31163731,2967.3,2966.9,0.001]
[1764020344542,0.215,2967.6,2966.9,0.001]
[1764020344845,0.31189984,2967.5,2966.9,0.001]
[1764020345046,0.31189984,2967.4,2966.9,0.001]
[1764020345259,0.31189984,2967.3,2966.9,0.001]
[1764020345458,0.31189984,2967.2,2966.9,0.001]
[1764020345672,0.7104,2967.6,2966.9,0.001]
[1764020345864,0.31201775,2967.5,2966.9,0.001]
[1764020346018,0.31201775,2967.4,2966.9,6.74204282]
[1764020346216,0.31201775,2967.3,2966.9,6.74204282]
[1764020346414,0.31201775,2967.2,2966.9,6.74204282]
[1764020346614,0.7104,2967.6,2966.9,6.74204282]
[1764020346809,0.31213337,2967.5,2966.9,6.74204282]
[1764020347056,0.31213337,2967.4,2966.9,6.74204282]
[1764020347254,0.31213337,2967.3,2966.9,6.74204282]
[1764020347452,0.31213337,2967.2,2966.9,6.74204282]
[1764020347759,0.31205811,2967.1,2966.9,3.37152141]
[1764020348061,0.4954,2967.4,2966.9,6.74204282]
[1764020348258,0.31208852,2967.3,2966.9,6.74204282]
[1764020348456,0.31208852,2967.2,2966.9,3.37152141]
[1764020348655,0.31208852,2967.1,2966.9,3.37152141]
[1764020348859,0.31208852,2967.0,2966.9,3.37152141]
[1764020350150,0.31208852,2967.0,2966.9,0.001]
[1764020351386,0.31208852,2967.0,2966.9,5.3250858]
[1764020351665,0.31216359,2967.2,2966.9,5.3250858]
[1764020351823,0.002,2967.3,2966.9,5.3250858]
[1764020352028,0.31216104,2967.2,2966.9,5.3250858]
[1764020352248,0.002,2967.3,2967.0,6.74081562]
[1764020352444,0.31216229,2967.2,2967.0,6.74081562]
[1764020352657,0.002,2967.3,2967.0,6.74081562]
[1764020352871,0.31216202,2967.2,2967.0,6.74081562]
[1764020353071,0.002,2967.3,2967.0,6.74081562]
[1764020353256,0.3121587,2967.2,2967.0,6.74081562]
[1764020353455,0.002,2967.3,2967.0,6.74081562]
[1764020353627,0.31215292,2967.2,2967.0,6.74081562]
[1764020353932,0.002,2967.3,2967.0,6.74081562]
[1764020354131,0.3120967,2967.2,2967.0,6.74081562]
[1764020354430,0.002,2967.3,2967.0,6.74081562]
[1764020354627,0.31209554,2967.2,2967.0,6.74081562]
[1764020354949,0.002,2967.3,2967.0,6.74081562]
[1764020355128,0.31209854,2967.2,2967.0,6.74081562]
[1764020355332,0.002,2967.3,2967.0,6.74081562]
[1764020355554,0.31209015,2967.2,2967.0,6.74081562]
[1764020355759,0.002,2967.3,2967.0,6.74081562]
[1764020355964,0.31209056,2967.2,2967.0,6.74081562]
[1764020356190,0.002,2967.3,2967.0,6.74081562]
[1764020356352,0.31212318,2967.2,2967.0,6.74081562]
[1764020356554,0.002,2967.3,2967.0,6.74081562]
[1764020356739,0.31212602,2967.2,2967.0,6.74081562]
[1764020357066,0.002,2967.3,2967.0,6.74081562]
[1764020357250,0.3121092,2967.2,2967.0,6.74081562]
[1764020357574,0.31212001,2967.1,2967.0,3.37040781]
[1764020357741,0.002,2967.3,2967.0,12.06490142]
[1764020357940,0.31213298,2967.2,2967.0,6.74081562]
[1764020358140,0.002,2967.3,2967.0,6.74081562]
[1764020358336,0.31214164,2967.2,2967.0,6.74081562]
[1764020358642,0.002,2967.3,2966.9,7.46763693]
[1764020358844,0.31214651,2967.2,2966.9,7.46763693]
[1764020359078,0.4974,2967.3,2966.9,7.46763693]
[1764020359276,0.31214324,2967.2,2966.9,7.46763693]
[1764020359575,0.4974,2967.3,2966.9,7.46763693]
[1764020359775,0.31214847,2967.2,2966.9,7.46763693]
[1764020360074,0.461,2967.3,2966.9,7.46763693]
[1764020360377,0.4665,2967.0,2966.9,4.09711552]
[1764020360874,0.461,2967.3,2966.9,7.46763693]
[1764020361065,0.31221926,2967.2,2966.9,7.46763693]
[1764020361260,0.31221926,2967.1,2966.9,7.46763693]
[1764020361467,0.461,2967.3,2966.9,7.46763693]
[1764020361647,0.31218807,2967.2,2966.9,7.46763693]
[1764020361848,0.31218807,2967.1,2966.9,7.46763693]
[1764020362161,0.461,2967.3,2966.9,7.46763693]
[1764020362368,0.31218575,2967.2,2966.9,7.46763693]
[1764020362664,0.31218575,2967.1,2966.9,7.46763693]
[1764020362865,0.461,2967.3,2966.9,7.46763693]
[1764020363066,0.31219534,2967.2,2966.9,7.46763693]
[1764020363279,0.31217622,2967.1,2966.9,7.46763693]
[1764020363448,0.459,2967.2,2966.9,7.46763693]
[1764020363646,0.31216357,2967.1,2966.9,7.46763693]
[1764020363846,0.459,2967.2,2966.9,7.46763693]
[1764020364043,0.4665,2967.0,2966.9,4.09711552]
[1764020364655,0.77864814,2967.0,2966.9,0.001]
[1764020365072,1.23764814,2967.0,2966.9,0.001]
[1764020365381,0.31214814,2967.0,2966.9,8.69560721]
[1764020365556,0.77864814,2967.0,2966.9,3.37152141]
[1764020366179,0.31214814,2967.0,2966.9,3.37152141]
[1764020366385,0.77864814,2967.0,2966.9,3.37152141]
[1764020366688,1.23764814,2967.0,2966.9,0.001]
[1764020366862,1.23764814,2967.0,2966.9,3.37152141]
[1764020367049,0.77864814,2967.0,2966.9,3.37152141]
[1764020367558,0.77864814,2967.0,2966.9,0.001]
[1764020367955,0.31214814,2967.0,2966.9,0.72659411]
[1764020368158,0.002,2967.3,2966.9,0.72659411]
[1764020368343,0.461,2967.3,2966.9,0.72659411]
[1764020369656,0.002,2967.3,2967.0,6.74081562]
[1764020370262,0.461,2967.3,2967.0,6.74081562]
[1764020370578,0.31204148,2967.2,2967.0,6.74081562]
[1764020370795,0.461,2967.3,2967.0,6.74081562]
[1764020371000,0.31199397,2967.2,2967.0,6.74081562]
[1764020371301,0.002,2967.3,2967.0,6.74081562]
[1764020371475,0.31200986,2967.2,2967.0,6.74081562]
[1764020371677,0.002,2967.3,2966.9,6.74204282]
[1764020371879,0.31203029,2967.2,2966.9,6.74204282]
[1764020372114,0.002,2967.3,2966.9,6.74204282]
[1764020372265,0.31203097,2967.2,2966.9,6.74204282]
[1764020372564,0.002,2967.3,2966.9,6.74204282]
[1764020372765,0.31203484,2967.2,2966.9,6.74204282]
[1764020373002,0.002,2967.3,2966.9,6.74204282]
[1764020373203,0.31203482,2967.2,2966.9,6.74204282]
[1764020373403,0.002,2967.3,2966.9,6.74204282]
[1764020373569,0.31203675,2967.2,2966.9,6.74204282]
[1764020373760,0.002,2967.3,2966.9,6.74204282]
[1764020374096,0.4665,2967.0,2966.9,3.37152141]
[1764020374294,0.461,2967.3,2966.9,3.37152141]
[1764020374295,0.002,2967.3,2966.9,6.74204282]
[1764020374520,0.31199674,2967.2,2966.9,6.74204282]
[1764020374706,0.31199674,2967.1,2966.9,6.74204282]
[1764020374997,0.461,2967.3,2966.9,6.74204282]
[1764020375201,0.31199669,2967.2,2966.9,6.74204282]
[1764020375399,0.31199669,2967.1,2966.9,6.74204282]
[1764020375568,0.461,2967.3,2966.9,6.74204282]
[1764020375771,0.31199417,2967.2,2966.9,6.74204282]
[1764020375978,0.31199417,2967.1,2966.9,6.74204282]
[1764020376298,0.461,2967.3,2966.9,6.74204282]
[1764020376486,0.31192872,2967.2,2966.9,6.74204282]
[1764020376806,0.31192872,2967.1,2966.9,6.74204282]
[1764020377006,0.461,2967.3,2966.9,6.74204282]
[1764020377210,0.31189637,2967.2,2966.9,6.74204282]
[1764020377377,0.31189637,2967.1,2966.9,6.74204282]
[1764020377704,0.4665,2967.0,2966.9,3.37152141]
[1764020377906,0.4665,2967.0,2966.9,0.001]
[1764020378203,0.002,2967.3,2966.9,0.001]
[1764020378406,0.31191442,2967.2,2966.9,0.001]
[1764020378604,0.31191442,2967.1,2966.9,0.001]
[1764020378807,0.002,2967.3,2966.9,0.001]
[1764020379007,0.31190905,2967.2,2966.9,0.001]
[1764020379203,0.31190905,2967.1,2966.9,0.001]
[1764020379387,0.002,2967.3,2966.9,0.001]
[1764020379588,0.31192888,2967.2,2966.9,0.001]
[1764020379900,0.31192888,2967.1,2966.9,0.001]
[1764020380098,0.002,2967.3,2966.9,0.001]
[1764020380271,0.31192876,2967.2,2966.9,0.001]
[1764020380477,0.4665,2967.0,2966.9,0.001]
[1764020380688,0.77842876,2967.0,2966.9,0.001]
[1764020380913,1.23742876,2967.0,2966.9,0.001]
[1764020381120,0.31192876,2967.0,2966.9,0.001]
[1764020381592,0.461,2967.3,2966.9,0.001]
[1764020381909,0.31183312,2967.2,2966.9,0.001]
[1764020382203,0.31192087,2967.1,2966.9,0.001]
[1764020382410,0.461,2967.3,2966.9,0.001]
[1764020382613,0.31194822,2967.2,2966.9,0.001]
[1764020382808,0.31194822,2967.1,2966.9,0.001]
[1764020382976,0.461,2967.3,2966.9,0.001]
[1764020383178,0.31195574,2967.2,2966.9,0.001]
[1764020383413,0.4665,2967.0,2966.9,0.001]
[1764020383579,0.77844556,2967.0,2966.9,0.001]
[1764020383779,1.23744556,2967.0,2966.9,0.001]
[1764020385786,0.9255,2967.0,2966.9,0.001]
[1764020386182,0.31208838,2967.0,2966.9,0.001]
[1764020386799,0.002,2967.3,2966.9,0.001]
[1764020387389,0.31217753,2967.2,2966.9,0.001]
[1764020387590,0.31218058,2967.1,2966.9,0.001]
[1764020387788,0.002,2967.2,2966.9,0.001]
[1764020387995,0.31219426,2967.1,2966.9,0.001]
[1764020388202,0.002,2967.2,2966.9,0.001]
[1764020388401,0.31222489,2967.1,2966.9,0.001]
[1764020388623,0.002,2967.2,2966.9,0.001]
[1764020388821,0.31234284,2967.1,2966.9,0.001]
[1764020388993,0.002,2967.2,2966.9,0.001]
[1764020389324,0.31234821,2967.1,2966.9,0.001]
[1764020389620,0.002,2967.2,2966.9,0.001]
[1764020389920,0.312248,2967.1,2966.9,0.001]
[1764020390127,0.31224712,2967.0,2966.9,0.001]
[1764020390314,0.468,2967.2,2966.9,0.001]
[1764020390515,0.4773,2967.0,2966.9,0.001]
[1764020390713,0.78946688,2967.0,2966.9,0.001]
[1764020390917,1.25546688,2967.0,2966.9,0.001]
[1764020392825,0.31216688,2967.0,2966.9,0.001]
[1764020396222,0.31207268,2967.0,2966.9,0.001]
[1764020398595,0.002,2967.2,2966.9,5.3250858]
[1764020398922,0.31216612,2967.1,2966.9,5.3250858]
[1764020399098,0.002,2967.2,2966.9,5.5390858]
[1764020399295,0.31218705,2967.1,2966.9,5.5390858]
[1764020399532,0.002,2967.2,2966.9,5.5390858]
[1764020399731,0.31222021,2967.1,2966.9,5.5390858]
[1764020399932,0.002,2967.2,2966.9,5.5390858]
[1764020400117,0.31225156,2967.1,2966.9,5.5390858]
[1764020400322,0.002,2967.2,2967.0,6.74081562]
[1764020400522,0.31216039,2967.1,2967.0,3.37040781]
[1764020401954,0.78946039,2967.1,2967.0,3.37040781]
[1764020402256,0.31216039,2967.1,2967.0,3.37040781]
[1764020403220,1.25546039,2967.1,2966.9,3.58547302]
[1764020403526,0.78946039,2967.0,2966.9,3.58547302]
[1764020403725,1.25546039,2967.0,2966.9,3.58547302]
[1764020404269,0.78946039,2967.0,2966.9,3.58547302]
[1764020404583,0.31216039,2967.0,2966.9,3.58547302]
[1764020408432,0.002,2967.2,2966.9,6.95599443]
[1764020408636,0.31233169,2967.1,2966.9,6.95599443]
[1764020408886,0.002,2967.2,2966.9,6.95599443]
[1764020409068,0.31240716,2967.1,2966.9,6.95599443]
[1764020409272,0.002,2967.2,2966.9,6.95599443]
[1764020409442,0.31240513,2967.1,2966.9,6.95599443]
[1764020409641,0.002,2967.2,2966.9,6.95599443]
[1764020409842,0.31240468,2967.1,2966.9,6.95599443]
[1764020410065,0.002,2967.2,2966.9,6.95599443]
[1764020410372,0.31241168,2967.1,2966.9,6.95599443]
[1764020410539,0.002,2967.2,2966.9,6.95599443]
[1764020410873,0.31240554,2967.1,2966.9,6.95599443]
[1764020411041,0.002,2967.2,2966.9,6.95599443]
[1764020411242,0.31247175,2967.1,2966.9,6.95599443]
[1764020411540,0.002,2967.2,2966.9,6.95599443]
[1764020411740,0.31246524,2967.1,2966.9,6.95599443]
[1764020412056,0.002,2967.2,2967.0,0.75929818]
[1764020412259,0.002,2967.3,2967.2,0.405504]
[1764020412441,0.002,2967.5,2967.2,1.13109811]
[1764020412641,0.002,2967.5,2967.4,6.45493877]
[1764020412842,0.002,2967.6,2967.5,0.72559411]
[1764020413277,0.002,2968.6,2967.6,0.405504]
[1764020413578,0.002,2968.6,2968.4,5.32384066]
[1764020413744,0.002,2968.6,2968.5,4.30829884]
[1764020413945,0.002,2968.8,2968.5,7.67700357]
[1764020414145,0.002,2968.8,2968.7,6.04943477]
[1764020415763,0.002,2969.2,2968.8,0.72559411]
[1764020415974,0.002,2969.2,2969.1,1.13109811]
[1764020416563,0.002,2969.7,2969.2,0.405504]
[1764020416769,0.002,2969.7,2969.3,6.26343477]
[1764020417851,0.002,2969.7,2969.3,9.63123189]
[1764020419265,0.002,2969.7,2969.3,4.30739123]
[1764020421497,0.4561,2969.4,2969.3,4.30739123]
[1764020421666,0.9433,2969.4,2969.3,4.30739123]
[1764020421873,0.9433,2969.4,2969.3,3.58179712]
[1764020422272,0.9433,2969.4,2969.3,4.30739123]
[1764020422703,0.4561,2969.4,2969.3,4.30739123]
[1764020423360,0.9433,2969.4,2969.3,4.30739123]
[1764020424792,0.002,2969.4,2969.3,4.30739123]
[1764020424994,0.4561,2969.4,2969.3,4.30739123]
[1764020425159,0.002,2969.4,2969.3,4.30739123]
[1764020435222,0.002,2969.4,2969.3,4.40739123]
[1764020435593,0.002,2969.4,2969.3,4.4410692]
[1764020435793,0.002,2969.4,2969.3,4.40739123]
[1764020436249,0.002,2969.4,2969.3,4.54231281]
[1764020436593,0.002,2969.4,2969.3,8.80781681]
[1764020437988,0.002,2969.7,2969.6,0.1]
[1764020438191,0.002,2969.7,2969.6,6.14943477]
[1764020438992,0.002,2969.7,2969.6,9.51689166]
[1764020440445,0.002,2969.7,2969.6,10.40959566]
[1764020440609,0.002,2970.0,2969.9,5.42384066]
[1764020440795,0.002,2970.0,2969.9,6.36343477]
[1764020441091,0.002,2970.0,2969.9,9.7305515]
[1764020441797,0.31198878,2971.1,2970.0,0.72559411]
[1764020442000,0.31198878,2971.0,2970.6,5.32384066]
[1764020442216,0.31198878,2970.9,2970.7,0.214]
[1764020442530,0.76608878,2970.8,2970.7,0.214]
[1764020443043,0.002,2971.2,2970.7,0.93959411]
[1764020443243,0.002,2971.2,2970.9,5.32384066]
[1764020443244,0.31230282,2971.1,2970.9,5.32384066]
[1764020443540,0.31230282,2971.0,2970.9,5.32384066]
[1764020444148,0.31230282,2971.0,2970.9,6.04943477]
[1764020444825,0.002,2971.2,2971.0,0.72559411]
[1764020445149,0.76636197,2971.1,2971.0,4.09146418]
[1764020445327,0.76636197,2971.1,2971.0,4.30546418]
[1764020445495,1.25356197,2971.1,2971.0,4.30546418]
[1764020446012,0.76636197,2971.1,2971.0,4.30546418]
[1764020446219,0.31226197,2971.1,2971.0,4.30546418]
[1764020447953,0.002,2971.2,2971.0,7.67133425]
[1764020451363,0.4937,2971.1,2971.0,4.30546418]
[1764020453762,0.9794,2971.1,2971.0,4.09146418]
[1764020453964,0.9794,2971.1,2971.0,4.30546418]
[1764020454152,1.29099294,2971.1,2970.5,3.36642027]
[1764020454355,0.4857,2971.0,2970.6,7.67224071]
[1764020454863,0.6837,2970.7,2970.6,0.93959411]
[1764020455070,0.99527747,2970.7,2970.6,0.214]
[1764020455229,1.48097747,2970.7,2970.6,0.214]
[1764020455630,1.48097747,2970.7,2970.6,0.93959411]
[1764020456067,1.48097747,2970.7,2970.2,3.36671663]
[1764020456264,1.29097747,2970.6,2970.2,3.36671663]
[1764020456566,0.4937,2970.3,2970.2,4.09231074]
[1764020456939,0.9794,2970.3,2970.2,4.09231074]
[1764020457668,1.29107338,2970.3,2970.2,4.09231074]
[1764020458368,1.29107338,2970.3,2970.2,3.36671663]
[1764020460467,0.4937,2970.3,2970.2,3.36671663]
[1764020460668,0.4857,2970.5,2970.2,6.73349327]
[1764020460869,0.4937,2970.3,2970.2,4.09231074]
[1764020461274,0.19,2970.7,2970.2,10.97006402]
[1764020461465,0.79784338,2970.6,2970.3,0.03366663]
[1764020461666,0.4857,2970.6,2970.2,10.97006402]
[1764020462070,0.4857,2970.6,2970.2,7.60328738]
[1764020462566,0.4857,2970.6,2970.2,10.97006402]
[1764020462769,0.4937,2970.3,2970.2,4.09231074]
[1764020463163,0.9794,2970.3,2970.2,4.09231074]
[1764020464383,0.4937,2970.3,2970.2,4.09231074]
[1764020464980,0.9794,2970.3,2970.2,4.09231074]
[1764020465683,0.9794,2970.3,2970.1,3.36680328]
[1764020465886,0.9794,2970.2,2970.0,3.36800263]
[1764020466050,0.4937,2970.1,2970.0,4.09359674]
[1764020466480,0.19,2970.7,2970.0,4.09359674]
[1764020466481,0.4857,2970.4,2970.0,7.4606001]
[1764020467271,0.4937,2970.1,2970.0,3.47359674]
[1764020467783,0.9794,2970.1,2970.0,3.47359674]
[1764020471477,0.9794,2970.1,2970.0,0.72559411]
[1764020471793,0.9794,2970.1,2969.9,3.36707492]
[1764020471794,0.4937,2970.1,2969.9,0.72559411]
[1764020471994,0.4937,2970.0,2969.9,0.72559411]
[1764020472198,0.9794,2970.0,2969.9,4.09271084]
[1764020476597,0.9794,2970.0,2969.9,9.40571649]
[1764020477091,0.9794,2970.0,2969.9,4.09271084]
[1764020477264,0.9794,2970.0,2969.9,4.09371084]
[1764020478501,0.4937,2970.0,2969.9,9.40671649]
[1764020480050,0.002,2970.3,2969.9,21.5981556]
[1764020480338,0.002,2970.6,2969.9,21.5981556]
[1764020480339,0.002,2970.6,2970.3,0.405504]
[1764020480490,0.002,2970.6,2970.5,7.76989349]
[1764020480927,0.002,2970.6,2970.5,7.91409349]
[1764020482109,0.002,2970.6,2970.5,11.28053011]
[1764020483922,0.002,2970.6,2970.5,11.13633011]
[1764020484130,0.002,2970.6,2970.5,11.35033011]
[1764020485627,0.002,2970.6,2970.5,11.49453011]
[1764020488899,0.002,2970.6,2970.5,11.35033011]
[1764020489113,0.002,2970.6,2970.5,11.49453011]
[1764020490428,0.002,2971.2,2970.6,0.72559411]
[1764020490727,0.002,2971.2,2971.1,0.1442]
[1764020490920,0.002,2971.2,2971.1,0.3582]
[1764020491229,0.002,2971.2,2971.1,0.214]
[1764020491528,0.4845,2971.2,2971.1,4.3053509]
[1764020492328,0.002,2971.2,2971.1,4.3053509]
[1764020493305,0.002,2971.2,2971.1,4.4495509]
[1764020500551,0.002,2971.2,2971.1,9.75620136]
[1764020502670,0.002,2971.2,2971.1,9.61200136]
[1764020503869,0.4845,2971.2,2971.1,9.61200136]
[1764020504032,0.98,2971.2,2971.1,9.39800136]
[1764020504360,0.98,2971.2,2971.1,9.61200136]
[1764020505552,0.4845,2971.2,2971.1,9.61200136]
[1764020506356,0.98,2971.2,2971.1,9.61200136]
[1764020506971,0.002,2971.2,2971.1,9.61200136]
[1764020507265,0.002,2971.2,2971.1,9.75620136]
[1764020508635,0.002,2971.2,2971.1,9.61200136]
[1764020514870,0.4663,2971.2,2971.1,9.61200136]
[1764020515243,0.9505,2971.2,2971.1,9.61200136]
[1764020516776,0.9505,2971.2,2971.1,4.0913509]
[1764020516978,0.9505,2971.2,2971.1,9.61200136]
[1764020520169,0.9505,2971.2,2971.1,9.39800136]
[1764020521048,0.002,2971.5,2971.1,18.21460861]
[1764020521248,0.002,2972.1,2971.7,0.72559411]
[1764020521569,0.002,2972.1,2971.7,1.08379411]
[1764020521787,0.4862,2972.1,2971.7,0.93959411]
[1764020522089,1.26470586,2971.8,2971.1,6.73151358]
[1764020522278,0.79840586,2971.7,2971.2,0.72559411]
[1764020522451,0.31424448,2971.6,2971.5,6.03224457]
[1764020522646,0.002,2971.8,2971.6,0.72559411]
[1764020522852,0.9485,2971.7,2971.4,0.214]
[1764020523185,0.4643,2971.5,2971.4,0.214]